bitfinex-derivatives/quotes_SOLF0:USTF0_20260207
["timestamp","ask_amount","ask_price","bid_price","bid_amount"]
[1770447566675,11.49751349,86.47,86.391,10.4237]
[1770447567368,11.49751349,86.45,86.372,11.95085493]
[1770447568275,11.49751349,86.45,86.376,10.4255]
[1770447568476,11.49751349,86.43,86.372,11.95085493]
[1770447570683,11.49751349,86.45,86.374,12.08186262]
[1770447571178,11.49751349,86.45,86.378,12.08186262]
[1770447572175,10.4168,86.449,86.378,12.08186262]
[1770447572377,11.49751349,86.43,86.378,12.08186262]
[1770447572981,11.49751349,86.45,86.349,12.12198003]
[1770447572982,11.49751349,86.41,86.349,12.12198003]
[1770447573280,11.49751349,86.39,86.273,12.12198003]
[1770447573477,11.49751349,86.39,86.291,12.12235189]
[1770447573681,11.49751349,86.37,86.302,12.12235189]
[1770447574282,11.49751349,86.4,86.302,12.12235189]
[1770447574283,11.49751349,86.35,86.302,12.12235189]
[1770447574490,11.49751349,86.35,86.27,2.35017016]
[1770447574491,11.49751349,86.33,86.271,12.0381249]
[1770447574784,34.7,86.362,86.285,12.0381249]
[1770447574985,11.49751349,86.37,86.285,12.0381249]
[1770447575381,10.29186048,86.42,86.288,10.4361]
[1770447575590,11.49751349,86.37,86.289,12.03847006]
[1770447576090,11.49751349,86.35,86.289,12.03847006]
[1770447576279,11.49751349,86.36,86.289,12.03847006]
[1770447577184,11.49751349,86.36,86.29,11.96978243]
[1770447577583,11.49751349,86.34,86.29,11.96978243]
[1770447579287,5.04677101,86.319,86.27,2.35017016]
[1770447579592,11.49751349,86.32,86.27,7.016e-05]
[1770447579593,11.49751349,86.31,86.27,7.016e-05]
[1770447579883,162.1784,86.375,86.27,7.016e-05]
[1770447579884,16.54366491,86.34,86.27,7.016e-05]
[1770447580092,5.07699235,86.362,86.28,11.49751349]
[1770447580389,11.49751349,86.37,86.281,10.437]
[1770447580582,5.07699235,86.383,86.3,11.49751349]
[1770447580785,11.49751349,86.39,86.3,11.49751349]
[1770447581089,5.08135742,86.432,86.32,11.49751349]
[1770447581285,5.08135742,86.432,86.3,11.49751349]
[1770447581286,11.49751349,86.43,86.341,7.76125366]
[1770447581484,5.07586438,86.429,86.343,7.76125366]
[1770447581683,11.49751349,86.42,86.343,7.76125366]
[1770447581986,11.49751349,86.42,86.345,7.76125366]
[1770447582287,11.49751349,86.42,86.3,11.49751349]
[1770447582288,11.49751349,86.45,86.361,7.76125366]
[1770447582587,11.49751349,86.47,86.387,7.76125366]
[1770447582779,11.49751349,86.45,86.387,7.76125366]
[1770447582978,11.49751349,86.47,86.387,7.76125366]
[1770447583179,11.49751349,86.43,86.387,7.76125366]
[1770447583782,11.49751349,86.44,86.387,7.76125366]
[1770447583978,11.49751349,86.44,86.321,162.2785]
[1770447583979,11.49751349,86.42,86.362,7.76125366]
[1770447584179,11.49751349,86.42,86.331,7.76125366]
[1770447584385,11.49751349,86.38,86.331,7.76125366]
[1770447585096,11.49751349,86.36,86.28,11.49751349]
[1770447585884,11.49751349,86.36,86.279,10.4372]
[1770447586390,8.29455944,86.375,86.26,11.49751349]
[1770447586590,8.29455944,86.359,86.26,11.49751349]
[1770447586789,11.49751349,86.34,86.26,11.49751349]
[1770447586986,11.49751349,86.34,86.271,7.76125366]
[1770447587483,8.29455944,86.359,86.271,7.76125366]
[1770447587484,11.49751349,86.33,86.271,7.76125366]
[1770447587885,8.29455944,86.349,86.271,7.76125366]
[1770447588189,11.49751349,86.33,86.249,7.76125366]
[1770447588391,11.49751349,86.31,86.249,7.76125366]
[1770447588594,8.29455944,86.329,86.249,7.76125366]
[1770447588886,10.29186048,86.38,86.269,7.76125366]
[1770447589090,11.49751349,86.31,86.249,7.76125366]
[1770447589990,11.49751349,86.32,86.249,7.76125366]
[1770447590393,11.49751349,86.32,86.252,7.76125366]
[1770447590786,11.49751349,86.3,86.252,7.76125366]
[1770447590995,11.49751349,86.3,86.211,7.76125366]
[1770447591291,11.49751349,86.28,86.217,7.76125366]
[1770447591490,8.29455944,86.299,86.217,7.76125366]
[1770447591894,8.29455944,86.299,86.219,10.4445]
[1770447592093,8.29455944,86.299,86.22,7.76125366]
[1770447592486,11.49751349,86.27,86.199,7.76125366]
[1770447593091,11.49751349,86.27,86.201,7.76125366]
[1770447593292,11.49751349,86.29,86.201,7.76125366]
[1770447593498,11.49751349,86.29,86.211,7.76125366]
[1770447593800,11.49751349,86.29,86.219,7.76125366]
[1770447593995,8.29455944,86.3,86.219,7.76125366]
[1770447594293,8.29455944,86.3,86.224,7.76125366]
[1770447594691,11.49751349,86.29,86.224,7.76125366]
[1770447595800,11.49751349,86.27,86.208,10.4458]
[1770447595998,8.29455944,86.289,86.209,7.76125366]
[1770447596198,11.49751349,86.28,86.209,7.76125366]
[1770447596688,11.49751349,86.26,86.209,7.76125366]
[1770447596894,8.29455944,86.279,86.181,7.76125366]
[1770447597396,11.49751349,86.26,86.181,7.76125366]
[1770447597996,11.49751349,86.26,86.186,7.76125366]
[1770447598592,11.49751349,86.26,86.18,11.49751349]
[1770447598593,11.49751349,86.27,86.19,7.76125366]
[1770447599293,8.29455944,86.249,86.178,10.4494]
[1770447599495,11.49751349,86.26,86.181,7.76125366]
[1770447599699,11.49751349,86.26,86.196,10.4472]
[1770447599894,8.29455944,86.269,86.197,7.76125366]
[1770447600096,11.49751349,86.27,86.201,7.76125366]
[1770447600393,19.79207293,86.29,86.208,7.76125366]
[1770447600600,8.29455944,86.289,86.208,7.76125366]
[1770447600790,11.49751349,86.29,86.221,7.76125366]
[1770447600996,19.79207293,86.31,86.232,7.76125366]
[1770447601194,8.29455944,86.309,86.232,7.76125366]
[1770447601396,11.49751349,86.33,86.256,7.76125366]
[1770447601699,11.49751349,86.33,86.175,20.8998]
[1770447601700,8.29455944,86.399,86.301,7.76125366]
[1770447601899,8.29455944,86.399,86.25,11.49751349]
[1770447601900,8.29455944,86.399,86.321,7.76125366]
[1770447602095,11.49751349,86.39,86.321,7.76125366]
[1770447602299,8.29455944,86.369,86.28,11.49751349]
[1770447602491,8.29455944,86.349,86.278,7.76125366]
[1770447602699,11.49751349,86.33,86.278,7.76125366]
[1770447603001,8.29455944,86.347,86.251,7.76125366]
[1770447603201,8.29455944,86.347,86.211,162.4852]
[1770447603402,11.49751349,86.37,86.3,11.49751349]
[1770447603698,8.29455944,86.389,86.3,11.49751349]
[1770447604094,8.29455944,86.389,86.301,10.4346]
[1770447604295,8.29455944,86.414,86.34,11.49751349]
[1770447604504,11.49751349,86.45,86.249,20.8818]
[1770447604505,8.29455944,86.409,86.265,162.3839]
[1770447604698,10.4218,86.408,86.32,11.49751349]
[1770447604894,10.4218,86.408,86.23,34.7]
[1770447604895,8.29455944,86.466,86.36,11.49751349]
[1770447605099,8.29455944,86.466,86.38,11.49751349]
[1770447605300,11.49751349,86.47,86.401,7.76125366]
[1770447605601,8.29455944,86.489,86.401,7.76125366]
[1770447605799,11.49751349,86.51,86.421,8.56946991]
[1770447605994,8.71126657,86.514,86.421,8.56946991]
[1770447606193,8.71126657,86.514,86.441,8.56946991]
[1770447606397,9.22730885,86.627,86.441,8.56946991]
[1770447606398,11.49751349,86.54,86.451,8.56946991]
[1770447606603,11.49751349,86.52,86.451,8.56946991]
[1770447607193,8.71126657,86.519,86.427,8.56946991]
[1770447607398,11.49751349,86.5,86.431,8.56946991]
[1770447607603,8.71126657,86.542,86.451,8.56946991]
[1770447607805,11.49751349,86.54,86.453,8.56946991]
[1770447608005,11.49751349,86.56,86.471,8.56946991]
[1770447608505,8.71126657,86.514,86.431,8.56946991]
[1770447608902,8.71126657,86.514,86.436,8.56946991]
[1770447610704,11.49751349,86.5,86.436,8.56946991]
[1770447612502,11.49751349,86.48,86.412,8.37736363]
[1770447612702,9.02061841,86.499,86.412,8.37736363]
[1770447612908,9.02061841,86.499,86.431,8.37736363]
[1770447613103,11.49751349,86.5,86.431,8.37736363]
[1770447613405,9.02061841,86.519,86.431,8.37736363]
[1770447613608,11.49751349,86.5,86.431,8.37736363]
[1770447613809,9.02061841,86.499,86.411,8.37736363]
[1770447614409,11.49751349,86.48,86.411,8.37736363]
[1770447614806,11.49751349,86.52,86.447,8.37736363]
[1770447615013,9.02061841,86.523,86.447,8.37736363]
[1770447615411,9.02061841,86.523,86.451,8.37736363]
[1770447616215,9.02061841,86.545,86.453,8.37736363]
[1770447616905,9.02061841,86.545,86.471,8.37736363]
[1770447617213,11.46283767,86.54,86.471,8.37736363]
[1770447618207,11.46283767,86.54,86.473,10.4138]
[1770447618712,9.02061841,86.545,86.474,8.37736363]
[1770447620010,9.02061841,86.545,86.477,10.4133]
[1770447620211,11.46283767,86.53,86.453,8.37736363]
[1770447620412,11.46283767,86.53,86.46,10.4153]
[1770447620808,9.02061841,86.529,86.453,8.37736363]
[1770447621609,9.02061841,86.529,86.457,10.4158]
[1770447622015,9.02061841,86.529,86.461,8.37736363]
[1770447622410,9.02061841,86.529,86.466,10.4146]
[1770447622612,11.46283767,86.55,86.466,8.37736363]
[1770447623111,9.02061841,86.552,86.466,8.37736363]
[1770447623314,9.02061841,86.552,86.483,18.78996363]
[1770447623518,11.46283767,86.54,86.483,8.37736363]
[1770447623816,9.02061841,86.552,86.483,8.37736363]
[1770447624018,9.02061841,86.569,86.483,8.37736363]
[1770447624415,9.02061841,86.569,86.467,162.0042]
[1770447624416,9.02061841,86.569,86.501,8.37736363]
[1770447624618,9.02061841,86.615,86.511,8.37736363]
[1770447624813,9.02061841,86.609,86.541,8.37736363]
[1770447626020,9.02061841,86.629,86.543,8.37736363]
[1770447627518,9.02061841,86.629,86.564,10.4029]
[1770447628715,9.02061841,86.629,86.563,8.37736363]
[1770447629019,9.02061841,86.629,86.542,8.37736363]
[1770447629319,9.02061841,86.589,86.523,10.4078]
[1770447630208,9.02061841,86.589,86.45,11.46283767]
[1770447630209,9.02061841,86.589,86.511,8.37736363]
[1770447630721,9.02061841,86.589,86.532,10.4067]
[1770447631313,9.02061841,86.589,86.516,10.4086]
[1770447631623,9.02061841,86.589,86.511,8.37736363]
[1770447631926,9.02061841,86.569,86.488,8.37736363]
[1770447632111,9.02061841,86.549,86.466,8.37736363]
[1770447632313,9.02061841,86.549,86.471,8.37736363]
[1770447632616,9.02061841,86.599,86.491,8.37736363]
[1770447632819,9.02061841,86.599,86.522,10.408]
[1770447633015,9.02061841,86.599,86.531,8.37736363]
[1770447633214,11.46283767,86.59,86.531,8.37736363]
[1770447633414,11.46283767,86.59,86.51,8.37736363]
[1770447633723,9.02061841,86.589,86.523,10.4077]
[1770447634921,9.02061841,86.589,86.51,8.37736363]
[1770447635222,11.46283767,86.57,86.51,8.37736363]
[1770447635423,9.02061841,86.589,86.521,8.37736363]
[1770447635916,9.16020764,86.579,86.51,10.4094]
[1770447636227,11.46283767,86.52,86.456,9.66615494]
[1770447636609,11.46283767,86.52,86.467,10.4145]
[1770447636814,11.46283767,86.5,86.434,9.66615494]
[1770447637018,11.46283767,86.51,86.456,10.4159]
[1770447637314,11.46283767,86.51,86.434,9.66615494]
[1770447637516,9.16020764,86.519,86.441,9.66615494]
[1770447637824,20.62304531,86.5,86.42,9.66615494]
[1770447638019,11.46283767,86.48,86.42,9.66615494]
[1770447638412,9.16020764,86.499,86.42,9.66615494]
[1770447638815,11.46283767,86.52,86.431,9.66615494]
[1770447639016,9.16020764,86.519,86.458,10.4157]
[1770447639416,9.16020764,86.479,86.388,9.66615494]
[1770447639621,11.46283767,86.45,86.396,10.4231]
[1770447639818,9.16020764,86.456,86.388,9.66615494]
[1770447640016,11.46283767,86.5,86.364,9.66615494]
[1770447640017,11.46283767,86.43,86.364,9.66615494]
[1770447640424,9.16020764,86.449,86.364,9.66615494]
[1770447641419,11.46283767,86.47,86.381,9.66615494]
[1770447641611,11.46283767,86.47,86.407,10.4217]
[1770447641816,11.46283767,86.47,86.381,9.66615494]
[1770447641817,11.46283767,86.47,86.403,9.66615494]
[1770447642011,11.46283767,86.49,86.403,9.66615494]
[1770447642616,9.16020764,86.497,86.403,9.66615494]
[1770447642617,11.46283767,86.48,86.403,9.66615494]
[1770447642817,9.16020764,86.497,86.403,9.66615494]
[1770447643017,11.46283767,86.49,86.403,9.66615494]
[1770447643222,11.46283767,86.49,86.421,9.66615494]
[1770447643417,9.16020764,86.497,86.421,9.66615494]
[1770447643621,11.46283767,86.49,86.421,9.66615494]
[1770447643917,11.46283767,86.49,86.423,10.4199]
[1770447644328,11.46283767,86.49,86.423,20.08605494]
[1770447644630,11.46283767,86.49,86.435,10.4184]
[1770447644928,11.46283767,86.51,86.436,9.66615494]
[1770447645317,11.46283767,86.51,86.446,10.4171]
[1770447645516,11.46283767,86.51,86.436,9.66615494]
[1770447646231,9.16020764,86.509,86.436,9.66615494]
[1770447646527,11.46283767,86.5,86.42,9.66615494]
[1770447646823,11.46283767,86.5,86.43,11.46283767]
[1770447647026,9.16020764,86.519,86.459,10.4155]
[1770447647627,10.1294601,86.586,86.4,11.46283767]
[1770447647628,11.46283767,86.54,86.473,10.4138]
[1770447648126,9.16020764,86.539,86.473,10.4138]
[1770447649126,20.62304531,86.52,86.46,10.4154]
[1770447649527,11.46283767,86.5,86.428,9.66615494]
[1770447649928,11.46283767,86.5,86.446,10.417]
[1770447650129,9.16020764,86.499,86.446,10.417]
[1770447650330,9.16020764,86.499,86.428,9.66615494]
[1770447650721,9.16020764,86.499,86.44,10.4178]
[1770447651427,9.16020764,86.499,86.428,9.66615494]
[1770447651827,9.16020764,86.499,86.427,10.4194]
[1770447652023,11.46283767,86.48,86.427,10.4194]
[1770447652829,9.16020764,86.499,86.439,10.4179]
[1770447653330,9.16020764,86.499,86.411,9.66615494]
[1770447653331,9.16020764,86.499,86.424,10.4197]
[1770447653538,9.16020764,86.499,86.411,9.66615494]
[1770447654236,9.16020764,86.499,86.435,10.4183]
[1770447655128,9.16020764,86.499,86.411,9.66615494]
[1770447655129,9.16020764,86.499,86.422,10.4199]
[1770447655525,9.16020764,86.499,86.411,9.66615494]
[1770447655724,9.16020764,86.499,86.354,20.8563]
[1770447655725,9.16020764,86.459,86.409,10.4215]
[1770447655938,9.16020764,86.459,86.391,9.66615494]
[1770447656229,11.46283767,86.46,86.381,9.66615494]
[1770447656435,9.16020764,86.479,86.4,11.46283767]
[1770447656633,9.16020764,86.479,86.381,9.66615494]
[1770447656833,9.16020764,86.478,86.399,10.4227]
[1770447657234,9.16020764,86.459,86.37,11.46283767]
[1770447657432,11.46283767,86.46,86.37,11.46283767]
[1770447657433,9.16020764,86.457,86.37,11.46283767]
[1770447657638,9.16020764,86.457,86.39,11.46283767]
[1770447658233,9.16020764,86.457,86.404,10.4221]
[1770447658830,9.16020764,86.495,86.416,10.4207]
[1770447659031,9.16020764,86.495,86.41,11.46283767]
[1770447659229,9.16020764,86.495,86.354,20.8563]
[1770447659230,9.16020764,86.495,86.43,11.46283767]
[1770447659434,9.16020764,86.495,86.411,9.66615494]
[1770447660038,9.16020764,86.492,86.411,9.66615494]
[1770447660236,9.16020764,86.492,86.45,11.46283767]
[1770447660436,9.16020764,86.512,86.45,11.46283767]
[1770447660636,9.16020764,86.512,86.431,9.66615494]
[1770447661043,9.16020764,86.512,86.433,10.4186]
[1770447661438,9.16020764,86.499,86.41,9.66615494]
[1770447661642,9.16020764,86.484,86.41,9.66615494]
[1770447662144,11.46283767,86.55,86.444,10.4173]
[1770447662145,9.16020764,86.507,86.444,10.4173]
[1770447662440,9.16020764,86.507,86.431,9.66615494]
[1770447662835,9.16020764,86.507,86.43,11.46283767]
[1770447662836,9.16020764,86.529,86.451,9.66615494]
[1770447663236,9.16020764,86.519,86.453,10.4162]
[1770447663448,9.16020764,86.519,86.451,9.66615494]
[1770447663746,9.16020764,86.519,86.449,10.4166]
[1770447664044,11.46283767,86.53,86.451,9.66615494]
[1770447664247,9.16020764,86.529,86.451,9.66615494]
[1770447664947,9.16020764,86.529,86.485,10.4124]
[1770447665548,9.16020764,86.529,86.45,11.46283767]
[1770447665549,9.16020764,86.552,86.497,10.411]
[1770447666050,9.16020764,86.552,86.508,10.4096]
[1770447666441,11.46283767,86.57,86.508,10.4096]
[1770447666838,10.0071176,86.574,86.52,10.4082]
[1770447667039,11.46283767,86.59,86.463,162.0113]
[1770447667040,10.0071176,86.589,86.463,162.0113]
[1770447667240,10.0071176,86.569,86.49,9.77475134]
[1770447667445,10.0071176,86.569,86.494,10.4112]
[1770447667653,10.0071176,86.569,86.49,9.77475134]
[1770447667854,10.0071176,86.569,86.506,10.4099]
[1770447668547,10.0071176,86.569,86.491,10.4116]
[1770447669445,10.0071176,86.569,86.503,10.4102]
[1770447669941,10.0071176,86.569,86.515,10.4087]
[1770447670253,9.66946695,86.589,86.516,9.91414804]
[1770447670648,21.81598253,86.65,86.451,20.8331]
[1770447670649,9.66946695,86.609,86.531,9.91414804]
[1770447671151,9.66946695,86.609,86.451,20.8331]
[1770447671152,9.66946695,86.609,86.532,20.32084804]
[1770447671746,9.66946695,86.609,86.54,10.4057]
[1770447672250,9.66946695,86.609,86.533,9.91414804]
[1770447672858,9.66946695,86.609,86.547,10.4049]
[1770447673754,9.66946695,86.609,86.534,10.4065]
[1770447673947,11.46283767,86.59,86.534,10.4065]
[1770447674454,9.66946695,86.609,86.547,10.4049]
[1770447674844,9.66946695,86.609,86.538,10.406]
[1770447675050,11.46283767,86.59,86.538,10.406]
[1770447675550,9.66946695,86.599,86.533,9.91414804]
[1770447676550,9.66946695,86.599,86.535,10.4064]
[1770447676751,9.66946695,86.599,86.533,9.91414804]
[1770447677257,9.66946695,86.619,86.533,9.91414804]
[1770447677659,9.66946695,86.619,86.55,11.44462653]
[1770447677957,9.66946695,86.589,86.507,9.91414804]
[1770447678158,9.66946695,86.589,86.511,9.91414804]
[1770447678356,21.11409348,86.61,86.546,10.405]
[1770447678663,21.11409348,86.61,86.531,9.91414804]
[1770447679455,21.11409348,86.61,86.557,10.4037]
[1770447679755,9.66946695,86.61,86.557,10.4037]
[1770447680156,9.66946695,86.61,86.568,10.4024]
[1770447680354,9.66946695,86.63,86.568,10.4024]
[1770447681264,9.66946695,86.63,86.568,20.31654804]
[1770447682654,9.66946695,86.629,86.568,20.31654804]
[1770447682961,9.66946695,86.629,86.555,10.4039]
[1770447683855,11.44462653,86.61,86.548,9.91414804]
[1770447684053,9.66946695,86.609,86.501,9.91414804]
[1770447684253,9.66946695,86.609,86.5,11.44462653]
[1770447684254,9.66946695,86.609,86.521,9.91414804]
[1770447684453,9.66946695,86.609,86.5,11.44462653]
[1770447684454,9.66946695,86.609,86.541,9.91414804]
[1770447685162,9.66946695,86.609,86.565,10.4027]
[1770447685357,9.66946695,86.609,86.541,9.91414804]
[1770447686958,9.66946695,86.629,86.541,9.91414804]
[1770447687158,11.44462653,86.61,86.541,9.91414804]
[1770447687361,9.66946695,86.609,86.541,9.91414804]
[1770447687561,9.66946695,86.589,86.521,9.91414804]
[1770447687957,9.66946695,86.589,86.502,9.91414804]
[1770447688461,11.44462653,86.57,86.522,10.408]
[1770447689763,9.66946695,86.589,86.511,9.91414804]
[1770447690463,9.66946695,86.609,86.531,9.91414804]
[1770447690864,9.66946695,86.609,86.553,10.4041]
[1770447691165,9.66946695,86.609,86.531,9.91414804]
[1770447691357,9.66946695,86.609,86.543,9.91414804]
[1770447691956,9.66946695,86.609,86.537,10.4061]
[1770447692163,9.66946695,86.609,86.518,9.91414804]
[1770447692458,9.66946695,86.589,86.525,10.4075]
[1770447692659,9.66946695,86.589,86.521,9.91414804]
[1770447693061,9.66946695,86.609,86.521,9.91414804]
[1770447693463,9.66946695,86.609,86.541,9.91414804]
[1770447693664,9.66946695,86.609,86.558,10.4035]
[1770447694757,9.66946695,86.609,86.569,10.4023]
[1770447694962,9.66946695,86.609,86.541,9.91414804]
[1770447695764,9.66946695,86.609,86.558,10.4036]
[1770447696065,10.62179486,86.629,86.551,9.91558592]
[1770447696369,10.62179486,86.629,86.571,9.91558592]
[1770447696958,42.57168453,86.7,86.55,11.44462653]
[1770447696959,10.62179486,86.669,86.59,11.44462653]
[1770447697168,11.44462653,86.7,86.55,11.44462653]
[1770447697169,10.62179486,86.649,86.572,9.91558592]
[1770447697360,11.44462653,86.7,86.572,9.91558592]
[1770447697361,11.44462653,86.63,86.572,9.91558592]
[1770447697562,10.62179486,86.629,86.541,9.91558592]
[1770447697873,10.62179486,86.609,86.541,9.91558592]
[1770447698069,10.62179486,86.589,86.53,10.4069]
[1770447698276,10.62179486,86.589,86.521,9.91558592]
[1770447698572,10.62179486,86.578,86.51,10.4094]
[1770447698781,10.62179486,86.569,86.51,10.4094]
[1770447699070,10.62179486,86.569,86.5,9.91558592]
[1770447699268,10.62179486,86.569,86.398,162.1344]
[1770447699269,10.62179486,86.549,86.432,9.91558592]
[1770447699574,10.62179486,86.529,86.441,9.91558592]
[1770447699769,10.62179486,86.509,86.43,11.44462653]
[1770447699969,10.62179486,86.509,86.417,9.91558592]
[1770447699970,10.62179486,86.489,86.417,9.91558592]
[1770447701065,11.44462653,86.51,86.4,11.44462653]
[1770447701066,10.62179486,86.511,86.443,20.33308592]
[1770447701282,11.44462653,86.53,86.451,9.91558592]
[1770447701470,10.62179486,86.529,86.451,9.91558592]
[1770447702262,10.62179486,86.529,86.461,9.91558592]
[1770447702468,10.62179486,86.519,86.44,21.36021245]
[1770447702672,10.62179486,86.519,86.451,10.4164]
[1770447704276,10.62179486,86.499,86.415,9.91558592]
[1770447704973,10.62179486,86.479,86.392,9.91558592]
[1770447705394,10.62179486,86.479,86.403,10.4222]
[1770447707071,10.62179486,86.479,86.35,11.44462653]
[1770447707072,10.62179486,86.459,86.37,21.36021245]
[1770447707272,11.44462653,86.45,86.371,9.91558592]
[1770447707470,10.62179486,86.489,86.41,11.44462653]
[1770447707666,10.62179486,86.489,86.41,21.36021245]
[1770447707966,10.62179486,86.509,86.431,9.91558592]
[1770447708171,11.44462653,86.55,86.4,11.44462653]
[1770447708172,10.62179486,86.53,86.47,11.44462653]
[1770447708371,10.62179486,86.529,86.453,10.4162]
[1770447708574,10.62179486,86.529,86.454,9.91558592]
[1770447709274,10.62179486,86.529,86.45,11.44462653]
[1770447709980,10.62179486,86.529,86.451,9.91558592]
[1770447710371,10.62179486,86.529,86.47,11.44462653]
[1770447710572,10.62179486,86.559,86.49,11.44462653]
[1770447710975,10.62179486,86.559,86.481,9.91558592]
[1770447711173,10.62179486,86.582,86.52,11.44462653]
[1770447711368,10.62179486,86.582,86.501,9.91558592]
[1770447711574,10.62179486,86.579,86.501,9.91558592]
[1770447711780,10.62179486,86.559,86.479,9.91558592]
[1770447712177,22.06642139,86.52,86.45,9.91558592]
[1770447712476,10.62179486,86.519,86.45,9.91558592]
[1770447712881,10.62179486,86.519,86.435,10.4184]
[1770447713084,11.44462653,86.5,86.435,10.4184]
[1770447713595,10.62179486,86.499,86.403,9.91558592]
[1770447713784,10.62179486,86.479,86.403,9.91558592]
[1770447714186,22.06642139,86.46,86.39,11.44462653]
[1770447714687,10.62179486,86.459,86.38,9.91558592]
[1770447715183,11.44462653,86.44,86.38,9.91558592]
[1770447715387,10.62179486,86.459,86.321,324.1379]
[1770447715388,10.62179486,86.459,86.381,9.91558592]
[1770447715575,11.44462653,86.45,86.381,9.91558592]
[1770447715780,10.62179486,86.459,86.381,9.91558592]
[1770447715983,10.62179486,86.459,86.381,20.34048592]
[1770447716284,10.62179486,86.459,86.382,9.91558592]
[1770447716577,10.62179486,86.459,86.391,9.91558592]
[1770447716780,10.62179486,86.48,86.41,11.44462653]
[1770447717183,10.62179486,86.469,86.397,10.4229]
[1770447717382,10.62179486,86.469,86.39,11.44462653]
[1770447717583,10.62179486,86.469,86.391,9.91558592]
[1770447717781,11.44462653,86.49,86.391,9.91558592]
[1770447717782,10.62179486,86.489,86.412,10.4212]
[1770447717978,10.62179486,86.489,86.412,9.91558592]
[1770447718382,10.62179486,86.489,86.425,10.4196]
[1770447718578,11.44462653,86.5,86.43,21.36021245]
[1770447719083,11.44462653,86.53,86.451,9.91558592]
[1770447719280,10.62179486,86.529,86.451,9.91558592]
[1770447719480,10.62179486,86.509,86.44,10.4178]
[1770447719685,11.44462653,86.49,86.409,9.91558592]
[1770447720189,11.44462653,86.49,86.417,9.91558592]
[1770447720391,11.44462653,86.49,86.421,9.91558592]
[1770447720686,10.62179486,86.489,86.421,9.91558592]
[1770447720886,10.62179486,86.489,86.42,11.44462653]
[1770447720887,11.44462653,86.49,86.426,9.91558592]
[1770447721287,22.06642139,86.51,86.43,9.91558592]
[1770447721476,11.44462653,86.53,86.441,9.91558592]
[1770447721680,10.62179486,86.532,86.461,9.91558592]
[1770447721877,10.62179486,86.532,86.468,10.4144]
[1770447722084,10.62179486,86.553,86.48,11.44462653]
[1770447722578,10.62179486,86.553,86.468,9.91558592]
[1770447723384,10.62179486,86.553,86.483,10.4125]
[1770447723980,10.62179486,86.553,86.495,10.4112]
[1770447724182,10.62179486,86.574,86.501,9.91558592]
[1770447724382,11.44462653,86.59,86.504,9.91558592]
[1770447724582,10.62179486,86.589,86.504,9.91558592]
[1770447724784,10.62179486,86.589,86.521,9.91558592]
[1770447724986,11.44462653,86.61,86.535,9.91558592]
[1770447725186,10.62179486,86.609,86.535,9.91558592]
[1770447725387,13.79628043,86.686,86.541,9.91558592]
[1770447725388,11.44462653,86.63,86.541,9.91558592]
[1770447725586,22.06642139,86.63,86.55,11.44462653]
[1770447725892,10.62179486,86.63,86.551,10.09412206]
[1770447726082,11.44462653,86.65,86.5,11.44462653]
[1770447726083,11.44462653,86.65,86.59,10.3997]
[1770447726286,10.09269099,86.649,86.546,10.09412206]
[1770447726481,10.09269099,86.629,86.546,10.09412206]
[1770447726681,11.44462653,86.62,86.546,10.09412206]
[1770447726888,11.44462653,86.62,86.549,10.4047]
[1770447727090,10.09269099,86.619,86.546,10.09412206]
[1770447727397,11.44462653,86.6,86.531,10.4069]
[1770447727694,11.44462653,86.6,86.524,10.09412206]
[1770447727695,11.44462653,86.59,86.524,10.09412206]
[1770447727894,10.09269099,86.589,86.501,10.09412206]
[1770447728296,10.09269099,86.549,86.485,10.4124]
[1770447728486,10.09269099,86.549,86.46,11.44462653]
[1770447728487,10.09269099,86.549,86.461,10.09412206]
[1770447728686,10.09269099,86.549,86.48,11.44462653]
[1770447728886,10.09269099,86.549,86.46,11.44462653]
[1770447729091,10.09269099,86.549,86.461,10.09412206]
[1770447729483,10.09269099,86.549,86.465,10.01108547]
[1770447730391,10.09269099,86.549,86.46,42.11546191]
[1770447730392,10.09269099,86.549,86.481,10.01108547]
[1770447730695,42.11546191,86.57,86.481,10.01108547]
[1770447730897,10.60398055,86.589,86.502,10.01108547]
[1770447731393,10.60398055,86.572,86.489,10.4119]
[1770447731793,10.60398055,86.572,86.496,10.411]
[1770447732598,10.60398055,86.569,86.49,10.01108547]
[1770447733107,10.60398055,86.569,86.468,10.01108547]
[1770447733396,10.353658,86.616,86.468,10.01108547]
[1770447733397,10.60398055,86.547,86.47,10.4142]
[1770447733585,10.60398055,86.547,86.468,10.01108547]
[1770447734002,10.60398055,86.547,86.469,10.4143]
[1770447734297,10.60398055,86.547,86.468,10.01108547]
[1770447734298,10.60398055,86.529,86.445,10.01108547]
[1770447734494,10.60398055,86.529,86.455,10.4159]
[1770447734794,10.60398055,86.551,86.461,10.01108547]
[1770447734993,10.60398055,86.549,86.473,10.4138]
[1770447735198,10.60398055,86.549,86.474,10.01108547]
[1770447735595,52.71944246,86.57,86.483,10.01108547]
[1770447736198,10.60398055,86.569,86.483,10.01108547]
[1770447736593,10.60398055,86.569,86.504,10.01108547]